Cogmind - Beta 16.1 *** ADVENTURER MODE // 2026.02.22 @ 13:20:48 Player: core_nxt Result: Destroyed by LW-05N(j) with Overtuned Pulse Rifle Performance ------------- Evolutions (0) 0 Regions Visited (3) 600 Robots Destroyed (43) 215 Value Destroyed (1491) 1491 Prototype IDs (32) 640 Alien Tech Used (0) 0 Bonus (800) 800 TOTAL SCORE: 3746 Bonus ------- Registered with UFD 300 Met Optimus in HQ 500 Cogmind --------- Core Integrity 0/250 Matter 300/300 Energy 240/265 System Corruption 1% Temperature Cool (87) Movement Treading (156) Location -9/Scraptown Parts ------- > --- POWER (1+1) ------ Improved Ion Engine > --- PROPULSION (2+1) - Spiked Treads Armored Treads Overtuned Treads (+) > --- UTILITY (2+1) ---- Large Storage Unit (+) Deep Structural Scanner Rainbow Chip > --- WEAPON (2+1) ----- Improved EM Shotgun > --- INVENTORY (20) --- VSS Leg VSS Leg Improved Heat Sink High-capacity Matter Pod (200) Sensor Array Expert System Scrap Shield A0-MCA's Component Scanner Mapping Drone Bay (3/3) Personal Teleporter v0.10 (0/15) 1B-0RG's Assimilator CPS Tube (2) Companion Sword Scrap Shield Fragment (49) Scrap Shield Fragment (40) Peak State ------------ > --- POWER ------------ Improved Ion Engine > --- PROPULSION ------- Spiked Treads Armored Treads Overtuned Treads > --- UTILITY ---------- Large Storage Unit Deep Structural Scanner Rainbow Chip > --- WEAPON ----------- Improved EM Shotgun Improved EM Shotgun > --- INVENTORY -------- Improved Heat Sink High-capacity Matter Pod Sensor Array Scrap Shield A0-MCA's Component Scanner Mapping Drone Bay Personal Teleporter v0.10 1B-0RG's Assimilator CPS Tube Companion Sword Scrap Shield Fragment Scrap Shield Fragment [Rating: 44] Favorites ----------- Power Improved Ion Engine Engine Improved Ion Engine Power Core Light Nuclear Core Propulsion Aluminum Leg Treads Spiked Treads Leg Aluminum Leg Utility Large Storage Unit Device Structural Scanner Storage Large Storage Unit Processor Rainbow Chip Weapon Improved EM Shotgun Energy Gun Improved EM Shotgun Ballistic Gun Light Assault Rifle Special Weapon Junk Cannon Slashing Weapon Companion Sword Build | -11 -10 -10 -9 ------- Run | Yrd Mat Sub Scr Slots Evolved . | . . . . Power . | . . . . Propulsion . | . . . . Utility . | . . . . Weapon . | . . . . Parts Attached 24 | 6 4 5 9 Power 4 | 1 1 1 1 Engine 3 | 1 . 1 1 Core 1 | . 1 . . Reactor . | . . . . Propulsion 6 | 2 . 2 2 Treads 3 | . . 1 2 Leg 3 | 2 . 1 . Wheel . | . . . . Hover . | . . . . Flight . | . . . . Utility 7 | 1 1 1 4 Device 5 | 1 . 1 3 Storage 1 | . 1 . . Processor 1 | . . . 1 Hackware . | . . . . Protection . | . . . . Artifact . | . . . . Weapon 7 | 2 2 1 2 Energy Gun 3 | 1 1 1 . Energy Cannon . | . . . . Ballistic Gun 2 | 1 1 . . Ballistic Cannon . | . . . . Launcher . | . . . . Special Weapon 1 | . . . 1 Impact Weapon . | . . . . Slashing Weapon 1 | . . . 1 Piercing Weapon . | . . . . Special Melee Weapon . | . . . . Unidentified Prototypes 3 | . 1 . 2 Parts Lost 9 | . . 7 2 Power 1 | . . 1 . Propulsion 3 | . . 3 . Utility 1 | . . . 1 Weapon 4 | . . 3 1 Highest Loss Streak 2 | . . 2 1 To Critical Strikes . | . . . . Average Backups 7 | . 5 7 7 Power . | . . . . Propulsion . | . . . . Utility 5 | . 1 5 5 Weapon . | . 2 . . Tool/Special . | . . . . Unused Backups 14 | . 1 . 13 Power . | . . . . Propulsion 4 | . 1 . 3 Utility 7 | . . . 7 Weapon . | . . . . Tool/Special 3 | . . . 3 Average Slot Usage (%) 83 | . 97 77 86 Engine 5 | . . 1 11 Core 2 | . 13 1 . Treads 10 | . . 4 23 Leg 11 | . 28 13 . Device 13 | . 13 14 12 Storage 12 | . 11 14 11 Energy Gun 18 | . 1 20 23 Ballistic Gun 6 | . 26 5 . Peak Build Rating 44 | 6 10 21 44 Average Rating 18 | 4 9 14 28 On Entrance 8 | . 6 10 19 Avg Prop Armor Cover (%) . | . . . . Naked Turns . | . . . . Heaviest Build 35 | 8 29 32 35 Greatest Support 58 | 20 20 20 58 Greatest Overweight (x) 2 | 2 1 2 1 Average Overweight (x) . | . . 1 . Largest Inventory Capacity 20 | 5 15 15 20 Average Capacity 14 | 5 13 15 15 Most Carried 20 | 1 8 15 20 Average Carried 12 | . 5 13 14 Final Capacity 20 | 5 15 15 20 Final Carried 20 | 1 8 15 20 Class Distribution -------------------- 100% | Mutant Dominant Class ---------------- Mutant | -10/Materials Mutant | -10/Subcaves Mutant | -9/Scraptown Resources | -11 -10 -10 -9 ----------- Run | Yrd Mat Sub Scr Matter Collected 1086 | 144 289 388 265 Remotely . | . . . . Salvage Created 1964 | 45 369 660 890 Parts 117 | 6 28 28 55 Haulers Intercepted 1 | . 1 . . Recyclers Shooed 1 | . 1 . . Parts Field Recycled . | . . . . Retrieved Matter . | . . . . Parts Self-Destructed 11 | . . 11 . Prevented 3 | . . 3 . Parts Restored . | . . . . Kills | -11 -10 -10 -9 ------- Run | Yrd Mat Sub Scr Combat Hostiles Destroyed 37 | . 9 13 15 Guns 37 | . 9 13 15 Classes Destroyed 11 | 1 3 3 4 Tunneler 3 | 3 . . . Hauler 1 | . 1 . . Turret 2 | . . 2 . Swarmer 5 | . 3 2 . Grunt 6 | . 6 . . Sentry 1 | . . 1 . Subdweller 10 | . . 10 . Federalist 4 | . . . 4 Ranger 1 | . . . 1 Guru 2 | . . . 2 Scrapper 8 | . . . 8 Best Kill Streak 5 | 3 2 3 5 Combat Bots Only 5 | . 2 2 5 Max Kills in Single Turn 2 | 1 1 1 2 Gunslinging . | . . . . Exploded . | . . . . Melee . | . . . . Uniques/NPCs Destroyed . | . . . . Combat | -11 -10 -10 -9 -------- Run | Yrd Mat Sub Scr Hostile Shots Fired 228 | . 37 120 71 Missed 86 | . 6 60 20 Hits 142 | . 31 60 51 Projectile 142 | . 31 60 51 AOE 2 | . . 2 . Critical Strikes 3 | . 1 . 2 Damage Taken 1767 | . 304 700 763 Core 279 | . 36 149 94 Absorbed by Shields . | . . . . Ignored by Resistances 489 | . 92 179 218 Regen/Repaired (Parts) 351 | . 15 . 336 Core Remaining (%) 100 | 100 . . . Volleys Fired 126 | 3 46 56 21 Largest 2 | 2 2 2 2 Hottest 90 | 60 60 90 90 Shots Fired 223 | 6 92 100 25 Gun 223 | 6 92 100 25 Cannon . | . . . . Launcher . | . . . . Special . | . . . . Kinetic 174 | 3 87 59 25 Thermal . | . . . . Explosive . | . . . . Electromagnetic 49 | 3 5 41 . Robot Hit Streak 37 | 2 12 37 12 Robot Miss Streak 3 | 1 3 2 3 Penetration Max . | . . . . Secondary Targets 4 | . 1 3 . Max Gunslinging Chain 1 | . 1 1 . Shots Hit Robots 147 | 4 60 65 18 Core Hits 86 | 3 22 39 22 Critical Kills 1 | . 1 . . Critical Parts Destroyed . | . . . . Critical Strikes 2 | . 1 1 . Destroy 2 | . 1 1 . Melee Attacks . | . . . . Impact . | . . . . Slashing . | . . . . Piercing . | . . . . Sneak Attacks . | . . . . Combat Hostiles . | . . . . Follow-up Attacks . | . . . . Damage Inflicted 4038 | 64 642 1890 1442 Guns 4038 | 64 642 1890 1442 Cannons . | . . . . Explosions . | . . . . Melee . | . . . . Ramming . | . . . . Kinetic 2637 | 25 575 595 1442 Thermal . | . . . . Explosive . | . . . . Electromagnetic 1401 | 39 67 1295 . Impact . | . . . . Slashing . | . . . . Piercing . | . . . . Highest Corruption 1 | . . . 1 Average Corruption 1 | . . . 1 Corruption Purged . | . . . . Corruption Blocked . | . . . . Effects 1 | . . . 1 Heat Flow Errors 1 | . . . 1 Overload Shots . | . . . . Overflow Damage . | . . . . Projectiles . | . . . . Explosions . | . . . . Melee . | . . . . Knockbacks . | . . . . Impact . | . . . . Kinetic . | . . . . Secondary . | . . . . Self-Inflicted Damage . | . . . . Shots . | . . . . Rammed . | . . . . Targets Rammed . | . . . . Kicked . | . . . . Crushed . | . . . . Highest Temperature 161 | . 61 . 161 Average Temperature 22 | . 16 . 33 Received Heat Transfer 784 | . 219 324 241 Siege Activations . | . . . . Martial Activations . | . . . . Shielding Activations . | . . . . Robots Disrupted . | . . . . Combat Hostiles . | . . . . Robots Corrupted . | . . . . Combat Hostiles . | . . . . Parts Fried 15 | . . 15 . Impact Corruptions . | . . . . Robots Melted . | . . . . Combat Hostiles . | . . . . Parts Melted 8 | . . 1 7 Heat Transferred . | . . . . Parts Sabotaged . | . . . . Parts Stolen . | . . . . Parts Stripped . | . . . . Power Chain Reactions . | . . . . Alert | -11 -10 -10 -9 ------- Run | Yrd Mat Sub Scr Maximum Alert Level . | . . . . Low Security (%) 100 | 100 100 . . Level 1 . | . . . . Level 2 . | . . . . Level 3 . | . . . . Level 4 . | . . . . Level 5 . | . . . . High Security . | . . . . Max Security . | . . . . Peak Influence 65 | 10 65 . . Initial . | . . . . Average 12 | 1 13 . . Influence Increases 697 | 15 252 430 . Destroy 0b10 Robot/C 280 | . 180 100 . Destroy 0b10 Robot/NC 20 | 15 5 . . Destroy Leader 42 | . 42 . . Successful Hack 10 | . 10 . . Lose Combat Pursuer 345 | . 15 330 . Influence Decreases 697 | 15 252 430 . Time Decay 657 | 15 252 390 . Lost Part 40 | . . 40 . Squads Dispatched . | . . . . Investigation . | . . . . Extermination . | . . . . Reinforcement . | . . . . Assault . | . . . . Garrison . | . . . . Intercept . | . . . . Searches Triggered . | . . . . Construction Impeded . | . . . . Haulers Reinforced . | . . . . Active Scanning Responses . | . . . . Cargo Convoy Interrupts . | . . . . Stealth | -11 -10 -10 -9 --------- Run | Yrd Mat Sub Scr Distress Signals . | . . . . Communications Jammed . | . . . . Distress Signals . | . . . . Times Spotted 67 | . 13 32 22 Peak Tracking Total 6 | . 4 6 5 Tactical Retreats 5 | . 1 4 . Traps | -11 -10 -10 -9 ------- Run | Yrd Mat Sub Scr Traps Triggered 2 | . . 2 . Indirectly . | . . . . Trap Hack Attempts . | . . . . Triggered . | . . . . Disarmed . | . . . . Reprogrammed . | . . . . Reused . | . . . . Traps Extracted . | . . . . Installed . | . . . . Triggered . | . . . . Machines | -11 -10 -10 -9 ---------- Run | Yrd Mat Sub Scr Machines Disabled 4 | . . 2 2 Max in Single Turn 1 | . . 1 1 Machines Repaired . | . . . . Machines Dismantled . | . . . . Machines Sabotaged . | . . . . Overloaded Fab Kills . | . . . . Hacking | -11 -10 -10 -9 --------- Run | Yrd Mat Sub Scr Machines Accessed 18 | . 8 2 8 Terminals 6 | . 6 . . Fabricators . | . . . . Repair Stations 1 | . 1 . . Recycling Units 1 | . 1 . . Scanalyzers . | . . . . Garrison Access . | . . . . Total Hacks 64 | . 15 4 45 Successful 59 | . 10 4 45 Failed 5 | . 5 . . Catastrophic 2 | . 2 . . Database Lockouts . | . . . . Manual 2 | . 2 . . Terminals 10 | . 10 . . Fabricators . | . . . . Repair Stations 3 | . 3 . . Recycling Units 2 | . 2 . . Scanalyzers . | . . . . Garrison Access . | . . . . Terminal Hacks 55 | . 6 4 45 Record 46 | . . 3 43 Prototype ID Bank 2 | . 2 . . Open Door 1 | . . . 1 Branch Access Points 1 | . 1 . . Emergency Access Points 1 | . 1 . . Locate Traps 2 | . 2 . . Proto ID Catalog 2 | . . 1 1 Fabricator Hacks . | . . . . Repair Station Hacks 2 | . 2 . . Scan Component 1 | . 1 . . Repair 1 | . 1 . . Recycling Unit Hacks 2 | . 2 . . Report Inventory 1 | . 1 . . Retrieve Components 1 | . 1 . . Scanalyzer . | . . . . Garrison Access Hacks . | . . . . Unauthorized Hacks . | . . . . Terminals . | . . . . Fabricators . | . . . . Repair Stations . | . . . . Recycling Units . | . . . . Scanalyzers . | . . . . Garrison Access . | . . . . Data Cores Recovered . | . . . . Used . | . . . . Hacking Detections 3 | . 3 . . Full Trace Events 1 | . 1 . . Feedback Events . | . . . . Feedback Blocked . | . . . . Robot Schematics Acquired . | . . . . Robots Built . | . . . . Authchips . | . . . . Time . | . . . . Total Robot Build Rating . | . . . . Part Schematics Acquired . | . . . . Parts Built . | . . . . Authchips . | . . . . Time . | . . . . Total Part Build Rating . | . . . . Part Studies Acquired . | . . . . Parts Repaired 1 | . 1 . . Time 13 | . 13 . . Parts Recycled . | . . . . Recycled Matter . | . . . . Retrieved Matter . | . . . . Retrieved Components 5 | . 5 . . Parts Scanalyzed . | . . . . Part Schematics Acquired . | . . . . Parts Damaged . | . . . . Bothacking | -11 -10 -10 -9 ------------ Run | Yrd Mat Sub Scr Used RIF Installer . | . . . . Robots Hacked . | . . . . Non-combat . | . . . . Combat . | . . . . Robot Hacks Applied . | . . . . Relay Couplers Released . | . . . . Fabnet Peak Effective % . | . . . . Robots Rewired . | . . . . Allies Hacked . | . . . . Hacks Repelled . | . . . . Allies | -11 -10 -10 -9 -------- Run | Yrd Mat Sub Scr Total Allies . | . . . . Largest Group . | . . . . Highest-Rated Group . | . . . . Highest-Rated Ally . | . . . . Total Orders . | . . . . Ally Attacks . | . . . . Total Damage . | . . . . Kills . | . . . . Allies Corrupted . | . . . . Allies Melted 3 | . . . 3 Intel | -11 -10 -10 -9 ------- Run | Yrd Mat Sub Scr Active Infowar (turns) 7392 | 1 1197 3700 2494 IFF 1 | 1 . . . Structural 6192 | . . 3698 2494 Seismic 1199 | . 1197 2 . Robot Analysis Total . | . . . . Derelict Logs Recovered 3 | . . 3 . Drone Launches . | . . . . Drone Recoveries . | . . . . Exploration | -11 -10 -10 -9 ------------- Run | Yrd Mat Sub Scr Turns Passed 8280 | 68 1210 4146 2856 Spaces Moved 4070 | 43 589 1813 1625 Core 121 | 6 . 8 107 Treads 2143 | . . 625 1518 Legs 1806 | 37 589 1180 . Wheels . | . . . . Hover . | . . . . Flight . | . . . . Fastest Speed 50 | 50 120 150 50 Average Speed 189 | 116 176 218 164 Slowest Speed 260 | 150 190 260 260 Overloaded Moves . | . . . . Propulsion Burnouts . | . . . . Robots Hopped . | . . . . Potential Cave-ins . | . . . . Cave-ins Triggered . | . . . . Exploration Rate (%) 70 | 4 95 93 90 Regions Visited 3 Branch Regions 2 Pre-discovered Areas 6 | . . 3 3 Known Exits Taken 1 | . . 1 . Unknown Exits Taken 2 | 1 1 . . Scrap Searched 16 | . . 10 6 Spaces Dug 2 | . . 2 . Terrain Destroyed 33 | . . 10 23 Melee . | . . . . Projectile 33 | . . 10 23 AOE . | . . . . Terrain Rammed . | . . . . Walls Destroyed . | . . . . Machines Disabled . | . . . . Actions | -11 -10 -10 -9 --------- Run | Yrd Mat Sub Scr Total 4417 | 52 678 1903 1784 Wait 130 | . 29 20 81 Move 4067 | 42 588 1812 1625 Hop . | . . . . Pick Up 33 | 1 7 6 19 Fast Attach 23 | 6 3 2 12 Attach 8 | . . 4 4 Detach 3 | . 1 . 2 Swap 4 | . 2 1 1 Drop 23 | . 2 2 19 Fire 126 | 3 46 56 21 Melee . | . . . . Ram . | . . . . Kick . | . . . . Crush . | . . . . Escape Stasis . | . . . . Rewire . | . . . . Trap . | . . . . Miscellaneous . | . . . . Route ------- -11/Scrapyard -10/Materials (discovered 5 exits: [*Mat x3] / *Min / *Sub) -10/Subcaves (discovered 4 exits: *Mat x2 / *Rec / *Scr) -9/Scraptown (discovered 2 exits: [*Fac x2]) History --------- Turn | Location | Event 13 | -11/Scrapyard | Discovered new exit (range 15) 69 | -11/Scrapyard | Entered Materials 70 | -10/Materials | Met a group of wandering Federalists 90 | -10/Materials | Discovered new exit (range 16) 268 | -10/Materials | Discovered new exit (range 10) 312 | -10/Materials | Build established: Mutant 326 | -10/Materials | Identified exit to Mines 409 | -10/Materials | Repaired Seismic Detector 548 | -10/Materials | Discovered new exit (range 10) 941 | -10/Materials | Discovered new exit (range 3) 1279 | -10/Materials | Entered Subcaves 1280 | -10/Subcaves | Continued accompanying wandering Federalists (6) 1447 | -10/Subcaves | Shifting Twisted Machinery released Battle Rifle 1529 | -10/Subcaves | Wandering Federalist uncovered a shortcut to Scraptown 1682 | -10/Subcaves | Discovered new exit (range 14) 1982 | -10/Subcaves | Discovered new exit (range 13) 2028 | -10/Subcaves | Identified exit to Materials 2139 | -10/Subcaves | Identified exit to Recycling 2547 | -10/Subcaves | Discovered exit to Materials (range 17) 2887 | -10/Subcaves | Visited 4L-MR0's lab 2902 | -10/Subcaves | Found Prototype Special Melee Weapon 2915 | -10/Subcaves | Found Rainbow Chip 3323 | -10/Subcaves | Shifting Twisted Machinery released Battle Cannon 3357 | -10/Subcaves | Learned Materials emergency access door positions 3418 | -10/Subcaves | Shifting Twisted Machinery released Battle Rifle 3489 | -10/Subcaves | Visited Clippyterm 3497 | -10/Subcaves | Learned location of Extension (-5) 3786 | -10/Subcaves | Learned location of Zion (-7) 3967 | -10/Subcaves | Core integrity fell below 50% 4228 | -10/Subcaves | Learned location of Recycling (-9) 4589 | -10/Subcaves | Identified exit to Scraptown 5425 | -10/Subcaves | Entered Scraptown 5894 | -9/Scraptown | Discovered new exit (range 9) 6054 | -9/Scraptown | Visited Symbiants 6111 | -9/Scraptown | Visited Shadow of the Wyrm 6308 | -9/Scraptown | Visited Fellowship of the Rings 6365 | -9/Scraptown | Visited Spacefarers 6426 | -9/Scraptown | Visited Cave Peace 6491 | -9/Scraptown | Visited CR-KLE's Repair Center 6502 | -9/Scraptown | CR-KLE repaired 4 parts 6527 | -9/Scraptown | Visited Cyclists 6554 | -9/Scraptown | Visited UFD Registry 6554 | -9/Scraptown | Registered with UFD as "Matterbomber" 6590 | -9/Scraptown | Entered Cyclist Reading Room 6654 | -9/Scraptown | Visited Derelict Rescue Squad 6717 | -9/Scraptown | Visited Science Guys 6795 | -9/Scraptown | Delivered Scrap Shield to a Scientist 6946 | -9/Scraptown | Visited DA-N13 Charitable Foundation 6953 | -9/Scraptown | Found DCF Scrap (31 items) 7009 | -9/Scraptown | Visited Sword Containment 7026 | -9/Scraptown | Found Prototype Slashing Weapon 7026 | -9/Scraptown | Identified Companion Sword 7055 | -9/Scraptown | Visited Junk Cannon Lab 7076 | -9/Scraptown | Found Prototype Special Weapon 7076 | -9/Scraptown | Identified Junk Cannon 7118 | -9/Scraptown | Visited A0-MCA Data Center 7127 | -9/Scraptown | Given a B rating by A0-MCA 7132 | -9/Scraptown | Found A0-MCA's Component Scanner 7166 | -9/Scraptown | Visited LU-1G1's Boring Crew 7225 | -9/Scraptown | Visited Cartography Club 7301 | -9/Scraptown | Found Deep Structural Scanner 7306 | -9/Scraptown | Learned location of Lower Caves (-7) 7306 | -9/Scraptown | Learned location of Quarantine (-3) 7306 | -9/Scraptown | Learned 12 Materials zone layouts 7306 | -9/Scraptown | Learned 8 Factory zone layouts 7306 | -9/Scraptown | Learned 20 Factory zone layouts 7306 | -9/Scraptown | Learned 12 Research zone layouts 7306 | -9/Scraptown | Learned 4 Recycling zone layouts 7306 | -9/Scraptown | Learned 20 Upper Caves zone layouts 7306 | -9/Scraptown | Learned 12 Proximity Caves zone layouts 7306 | -9/Scraptown | Learned 24 Proximity Caves zone layouts 7306 | -9/Scraptown | Learned Materials emergency access door positions 7306 | -9/Scraptown | Learned location of 1 exit from Factory 7306 | -9/Scraptown | Learned location of 2 exits from Research 7306 | -9/Scraptown | Learned location of 3 exits from Lower Caves 7393 | -9/Scraptown | Attached Rainbow Chip, gained temporary slots: Power, Propulsion, Utility, Weapon 7557 | -9/Scraptown | Discovered new exit (range 12) 7758 | -9/Scraptown | Met Optimus 7758 | -9/Scraptown | Accepted into 0bPrime 7816 | -9/Scraptown | Identified 1B-0RG's Assimilator 8005 | -9/Scraptown | Found Scrap Suit 8085 | -9/Scraptown | Civil war broke out across Scraptown 8118 | -9/Scraptown | Found Personal Teleporter v0.10 8130 | -9/Scraptown | Lost 6 allies 8158 | -9/Scraptown | Core integrity fell below 20% 8207 | -9/Scraptown | Lost 8 allies 8221 | -9/Scraptown | Found Expert System 8249 | -9/Scraptown | Found Deep Structural Scanner 8258 | -9/Scraptown | Lost 7 allies 8281 | -9/Scraptown | Destroyed by LW-05N(j) with Overtuned Pulse Rifle Last Messages --------------- 08233_ Destroyed Lgt. Deuterium Engine. 08233_ I5-9NS(p) destroyed. 08235_ Mak. Salvage Targeting Computer melted. 08235_ Lgt. Deuterium Engine melted. 08235_ 53-S7W(j) destroyed. 08245_ EI-ZXU(j): "Down with Optimus!" 08245_ LG-B8E(g) destroyed. 08247_ EI-ZXU(j) cannibalizes Aluminum Leg to repair Ovr. Titanium Leg. 08247_ EI-ZXU(j) destroyed. 08247_ 99-YV2(g) destroyed. 08249_ Acquired Deep Structural Scanner. 08259_ System corrupted: Heat flow error (+176). 08259_ Acquired 10 matter. 08271_ FM-81H(j) destroyed. 08276_ GH-N4R(g) suffers critical hit (Burn). 08276_ GH-N4R(g) destroyed. 08278_ EK-KZA(j) destroyed. 08279_ The unstable cave ceiling collapses. 08279_ Mak. Hacking Suite crushed. 08280_ YE-H1P(g) destroyed. Map ----- +----------------------------------------------------+ | | | | | | | | | | | ?????????????????????????????????????????????????? | | ?????????????????????????????????????????????????? | | ?????????????????????????????????????????????????? | | ?????????????????????????????????????????????????? | | ?????????????????????????????????????????????????? | | ?????????????????????????????????????????????????? | | ?????????????????????????????????????????????????? | | ?????????????????????????????????????????????????? | | ??????????????????????????????###########????????? | | ?????????????????????????################????????? | | ##########################################???????? | | ##########################################???????? | | ##################################* "#####???????? | | ############################ #!#!!=[=; ###???????? | | ##"""##"""##"" ##"""#####![#!#!!=!!